Cogmind - Beta 12 @@@ ROGUE MODE // 2024.02.19 @ 05:10:40 Player: Six of Ten Result: Destroyed by Y-54 Guardian with Gatling Laser Performance ------------- Evolutions (4) 2000 Regions Visited (9) 1800 Robots Destroyed (51) 255 Value Destroyed (2920) 2920 Prototype IDs (23) 460 Alien Tech Used (0) 0 Bonus (1162) 1162 TOTAL SCORE: 8597 Bonus ------- High Alert Combat Kills 162 Entered Garrisons 200 Entered DSFs 500 Aligned with FarCom 300 Cogmind --------- Core Integrity 0/850 Matter 258/300 Energy 72/100 System Corruption 8% Temperature Cool (30) Movement Flying (115) Ox1 Location -6/Garrison Parts ------- > --- POWER (1) -------- (None) > --- PROPULSION (4) --- VTOL Module > --- UTILITY (6) ------ Small Storage Unit Hacking Suite > --- WEAPON (4) ------- Axe > --- INVENTORY (8) ---- Advanced Heat Sink Skeleton Box Variable Charge Gun Variable Charge Gun Variable Charge Gun Improved Datajack Signal Generator Peak State ------------ > --- POWER ------------ Light Angular Momentum Engine > --- PROPULSION ------- Carbon-fiber Leg Carbon-fiber Leg Carbon-fiber Leg Carbon-fiber Leg > --- UTILITY ---------- Improved Cooling System Large Storage Unit Advanced Terrain Scan Processor Improved Light Armor Plating Hacking Suite Hacking Suite > --- WEAPON ----------- Heavy Laser Heavy Laser Smartbomb Launcher > --- INVENTORY -------- Light Angular Momentum Engine VTOL Module VTOL Module VTOL Module VTOL Module Small Storage Unit Hacking Suite Hacking Suite Skeleton Box Flak Gun Improved Datajack Scythe Axe Signal Generator [Rating: 59] Favorites ----------- Power Light Ion Engine Engine Light Ion Engine Power Core Light Nuclear Core Propulsion Armored Treads Treads Armored Treads Leg Aluminum Leg Wheel Wheel Hover Unit Airjet Flight Unit Cesium-ion Thruster Utility Improved Terrain Scanner Device Improved Terrain Scanner Storage Large Storage Unit Processor Advanced Targeting Computer Hackware Hacking Suite Protection Improved Light Armor Plating Weapon Particle Gun Energy Gun Particle Gun Ballistic Gun Assault Rifle Ballistic Cannon Gauss Cannon Launcher Smartbomb Launcher Slashing Weapon Scythe Build | -11 -10 -10 -10 -9 -8 -7 -7 -6 -6 ------- Run | Jun Mat Min Exi Min Mat Fac DSF Fac Gar Slots Evolved 8 | . . . . . 4 2 . 2 . Power . | . . . . . . . . . . Propulsion 2 | . . . . . 2 . . . . Utility 4 | . . . . . 2 2 . . . Weapon 2 | . . . . . . . . 2 . Parts Attached 97 | 7 6 . . . 9 2 11 4 58 Power 10 | 1 1 . . . 1 . 1 . 6 Engine 9 | 1 1 . . . 1 . 1 . 5 Core 1 | . . . . . . . . . 1 Reactor . | . . . . . . . . . . Propulsion 30 | 2 1 . . . 3 . 4 . 20 Treads 7 | . . . . . 1 . 4 . 2 Leg 11 | 2 1 . . . . . . . 8 Wheel 2 | . . . . . 1 . . . 1 Hover 1 | . . . . . 1 . . . . Flight 9 | . . . . . . . . . 9 Utility 24 | 2 1 . . . 3 2 3 4 9 Device 10 | 1 . . . . 1 2 2 3 1 Storage 4 | 1 1 . . . . . 1 . 1 Processor 3 | . . . . . 2 . . 1 . Hackware 4 | . . . . . . . . . 4 Protection 3 | . . . . . . . . . 3 Artifact . | . . . . . . . . . . Weapon 33 | 2 3 . . . 2 . 3 . 23 Energy Gun 13 | . 3 . . . . . 1 . 9 Energy Cannon . | . . . . . . . . . . Ballistic Gun 6 | 2 . . . . . . . . 4 Ballistic Cannon 2 | . . . . . 1 . 1 . . Launcher 6 | . . . . . 1 . 1 . 4 Special Weapon . | . . . . . . . . . . Impact Weapon . | . . . . . . . . . . Slashing Weapon 6 | . . . . . . . . . 6 Piercing Weapon . | . . . . . . . . . . Special Melee Weapon . | . . . . . . . . . . Unidentified Prototypes . | . . . . . . . . . . Corrupted Parts 1 | . . . . . . . . . 1 System Corruption 3 | . . . . . . . . . 3 Parts Lost 40 | . . . . . 5 . 2 . 33 Power 4 | . . . . . 1 . . . 3 Propulsion 17 | . . . . . 3 . . . 14 Utility 7 | . . . . . . . 1 . 6 Weapon 12 | . . . . . 1 . 1 . 10 Highest Loss Streak 8 | . . . . . 4 . 2 . 8 To Critical Strikes . | . . . . . . . . . . Average Slot Usage (%) 86 | . 99 100 100 100 86 74 96 85 74 Engine 7 | . 14 14 14 14 8 7 7 6 3 Treads 9 | . . . . . 6 . 28 26 9 Leg 10 | . 28 28 28 28 11 . . . 4 Wheel 1 | . . . . . 7 7 . . . Flight 1 | . . . . . . . . . 3 Device 11 | . 14 14 14 14 11 21 20 14 6 Storage 8 | . 14 14 14 14 9 7 7 6 6 Processor 9 | . . . . . 11 15 15 18 12 Hackware 1 | . . . . . . . . . 4 Energy Gun 12 | . 14 28 28 28 15 7 3 6 9 Ballistic Gun 2 | . 13 . . . . . . . 2 Ballistic Cannon 2 | . . . . . 1 7 10 6 . Slashing Weapon 1 | . . . . . . . . . 4 Naked Turns . | . . . . . . . . . . Heaviest Build 51 | 13 20 20 20 20 28 29 49 49 51 Greatest Support 80 | 20 20 20 20 20 20 10 80 80 80 Greatest Overweight (x) 6 | 2 . . . . 2 2 2 . 6 Average Overweight (x) . | . . . . . 1 2 . . . Largest Inventory Capacity 15 | 8 10 10 10 10 10 10 15 15 15 Average Capacity 12 | 7 9 10 10 10 10 10 13 15 13 Most Carried 15 | 7 10 10 10 10 10 8 15 15 15 Average Carried 10 | 3 8 9 9 10 9 7 11 14 12 Final Capacity 15 | 8 10 10 10 10 10 10 15 15 8 Final Carried 15 | 6 9 10 10 10 9 8 14 15 7 Class Distribution -------------------- 44% | Mutant 27% | Skirmisher 16% | Scavenger-Skirmisher 3% | Sprinter 3% | Scavenger-Sprinter Dominant Class ---------------- Mutant | -10/Materials Mutant | -10/Mines Mutant | -10/Exiles Skirmisher | -9/Mines Skirmisher | -8/Materials Skirmisher | -7/Factory Skirmisher | -7/DSF Mutant | -6/Factory Scavenger-Skirmisher | -6/Garrison Resources | -11 -10 -10 -10 -9 -8 -7 -7 -6 -6 ----------- Run | Jun Mat Min Exi Min Mat Fac DSF Fac Gar Matter Collected 1880 | 215 90 . . . 263 . 378 . 934 Remotely . | . . . . . . . . . . Salvage Created 2073 | 19 163 . . . 286 . 470 . 1135 Parts 82 | 4 8 . . . 17 . 13 . 40 Haulers Intercepted . | . . . . . . . . . . Recyclers Shooed . | . . . . . . . . . . Parts Field Recycled . | . . . . . . . . . . Retrieved Matter . | . . . . . . . . . . Parts Self-Destructed . | . . . . . . . . . . Prevented . | . . . . . . . . . . Kills | -11 -10 -10 -10 -9 -8 -7 -7 -6 -6 ------- Run | Jun Mat Min Exi Min Mat Fac DSF Fac Gar Combat Hostiles Destroyed 49 | . 3 . . . 7 . 11 . 28 Melee 8 | . . . . . . . . . 8 Guns 14 | . 3 . . . 2 . . . 9 Cannons 12 | . . . . . 1 . 8 . 3 AOE 13 | . . . . . 3 . 2 . 8 Classes Destroyed 10 | 1 2 . . . 3 . . . 4 Tunneler 1 | 1 . . . . . . . . . Watcher 1 | . 1 . . . . . . . . Swarmer 7 | . . . . . . . . . 7 Saboteur 1 | . . . . . . . . . 1 Grunt 32 | . 3 . . . 3 . 10 . 16 Duelist 1 | . . . . . . . . . 1 Sentry 3 | . . . . . 2 . . . 1 Hunter 1 | . . . . . 1 . . . . Programmer 2 | . . . . . . . . . 2 Heavy 2 | . . . . . 1 . 1 . . Best Kill Streak 4 | 1 4 . . . 3 . 4 . 4 Combat Bots Only 4 | . 3 . . . 3 . 4 . 4 Max Kills in Single Turn 4 | 1 1 . . . 3 . 2 . 4 Gunslinging 1 | . . . . . . . . . 1 Exploded 4 | . . . . . 3 . 2 . 4 Melee 1 | . . . . . . . . . 1 Uniques/NPCs Destroyed . | . . . . . . . . . . Combat | -11 -10 -10 -10 -9 -8 -7 -7 -6 -6 -------- Run | Jun Mat Min Exi Min Mat Fac DSF Fac Gar Damage Taken 5897 | . 106 . . . 731 . 1306 . 3754 Core 1315 | . 27 . . . 103 . 332 . 853 Absorbed by Shields 186 | . . . . . . . . . 186 Redirected to Shielding 18 | . . . . . . . . . 18 Core Remaining (%) 80 | 100 . . . 89 81 . 52 . . Volleys Fired 142 | 1 18 . . . 29 . 34 . 60 Largest 3 | 2 2 . . . 2 . 2 . 3 Hottest 225 | 40 130 . . . 130 . 113 . 225 Shots Fired 274 | 2 36 . . . 57 . 62 . 117 Gun 172 | 2 36 . . . 42 . 1 . 91 Cannon 81 | . . . . . 12 . 56 . 13 Launcher 21 | . . . . . 3 . 5 . 13 Special . | . . . . . . . . . . Kinetic 121 | 2 26 . . . 12 . 56 . 25 Thermal 132 | . 10 . . . 42 . 1 . 79 Explosive 11 | . . . . . . . . . 11 Electromagnetic 10 | . . . . . 3 . 5 . 2 Robot Hit Streak 14 | 2 5 . . . 8 . 11 . 14 Robot Miss Streak 3 | . 1 . . . 2 . 3 . 3 Penetration Max 1 | . . . . . . . 1 . . Secondary Targets 2 | . . . . . . . . . 2 Max Gunslinging Chain 1 | . . . . . . . . . 1 Shots Hit Robots 195 | 2 22 . . . 39 . 44 . 88 Core Hits 106 | 1 8 . . . 16 . 23 . 58 Critical Kills . | . . . . . . . . . . Critical Parts Destroyed . | . . . . . . . . . . Critical Strikes 11 | . . . . . 3 . 4 . 4 Burn 6 | . . . . . 3 . 1 . 2 Blast 4 | . . . . . . . 3 . 1 Sever 1 | . . . . . . . . . 1 Melee Attacks 45 | . . . . . . . . . 45 Impact . | . . . . . . . . . . Slashing 45 | . . . . . . . . . 45 Piercing . | . . . . . . . . . . Sneak Attacks . | . . . . . . . . . . Combat Hostiles . | . . . . . . . . . . Follow-up Attacks . | . . . . . . . . . . Damage Inflicted 6710 | 22 275 . . . 936 . 1598 . 3879 Guns 1815 | 22 275 . . . 417 . 15 . 1086 Cannons 1777 | . . . . . 278 . 1180 . 319 Explosions 2430 | . . . . . 241 . 403 . 1786 Melee 688 | . . . . . . . . . 688 Ramming . | . . . . . . . . . . Kinetic 2157 | 22 245 . . . 278 . 1180 . 432 Thermal 1651 | . 30 . . . 508 . 140 . 973 Explosive 1658 | . . . . . . . . . 1658 Electromagnetic 556 | . . . . . 150 . 278 . 128 Impact . | . . . . . . . . . . Slashing 688 | . . . . . . . . . 688 Piercing . | . . . . . . . . . . Highest Corruption 8 | . . . . . . . . . 8 Average Corruption 6 | . . . . . . . . . 6 Corruption Purged . | . . . . . . . . . . Corruption Blocked . | . . . . . . . . . . Effects 30 | . . . . . . . . . 30 Message Errors 7 | . . . . . . . . . 7 Matter Fused 7 | . . . . . . . . . 7 Heat Flow Errors 6 | . . . . . . . . . 6 Energy Discharges 7 | . . . . . . . . . 7 Parts Rejected 1 | . . . . . . . . . 1 Data Loss (major) 1 | . . . . . . . . . 1 Misfires 1 | . . . . . . . . . 1 Overload Shots . | . . . . . . . . . . Overflow Damage 106 | . . . . . . . 15 . 91 Projectiles 18 | . . . . . . . . . 18 Explosions 88 | . . . . . . . 15 . 73 Melee . | . . . . . . . . . . Knockbacks 10 | . . . . . . . 7 . 3 Impact . | . . . . . . . . . . Kinetic 9 | . . . . . . . 6 . 3 Secondary 1 | . . . . . . . 1 . . Self-Inflicted Damage 101 | . . . . . . . 6 . 95 Shots 4 | . . . . . . . 1 . 3 Rammed . | . . . . . . . . . . Targets Rammed . | . . . . . . . . . . Kicked . | . . . . . . . . . . Crushed . | . . . . . . . . . . Highest Temperature 1822 | . 207 . . . 396 . 1822 . 306 Average Temperature 211 | . 73 . . . 121 . 562 . 93 Received Heat Transfer 1991 | . 63 . . . 63 . 441 . 1424 Effects 26 | . . . . . . . 25 . 1 Shutdowns 5 | . . . . . . . 5 . . Energy Bleed 3 | . . . . . . . 3 . . Interference 4 | . . . . . . . 3 . 1 Matter Decay 1 | . . . . . . . 1 . . Short Circuit 1 | . . . . . . . 1 . . Damage (minor) 3 | . . . . . . . 3 . . Damage (major) 7 | . . . . . . . 7 . . Damage (core) 2 | . . . . . . . 2 . . Siege Activations . | . . . . . . . . . . Robots Corrupted 1 | . . . . . . . 1 . . Combat Hostiles 1 | . . . . . . . 1 . . Parts Fried 1 | . . . . . . . 1 . . Impact Corruptions . | . . . . . . . . . . Robots Melted 1 | . . . . . 1 . . . . Combat Hostiles 1 | . . . . . 1 . . . . Parts Melted 6 | . . . . . 1 . . . 5 Heat Transferred 3654 | . 74 . . . 1284 . 261 . 2035 Parts Sabotaged 15 | . . . . . . . . . 15 Parts Stolen . | . . . . . . . . . . Parts Stripped . | . . . . . . . . . . Power Chain Reactions 3 | . . . . . 1 . 2 . . Missiles Intercepted . | . . . . . . . . . . Alert | -11 -10 -10 -10 -9 -8 -7 -7 -6 -6 ------- Run | Jun Mat Min Exi Min Mat Fac DSF Fac Gar Peak Influence 949 | 5 106 . . . 233 31 297 155 949 Initial 155 | . 3 . . . . 31 25 155 108 Average 228 | . 54 . . . 56 31 173 155 430 Maximum Alert Level 3 | . . . . . 1 . 1 . 3 Low Security (%) 59 | 100 100 100 . 100 96 100 48 100 18 Level 1 24 | . . . . . 3 . 51 . 41 Level 2 8 | . . . . . . . . . 21 Level 3 7 | . . . . . . . . . 19 Level 4 . | . . . . . . . . . . Level 5 . | . . . . . . . . . . High Security . | . . . . . . . . . . Max Security . | . . . . . . . . . . Sterilizations 1 | . . . . . . . 1 . . Squads Dispatched 3 | . . 1 . . 1 . 1 . . Investigation . | . . . . . . . . . . Extermination . | . . . . . . . . . . Reinforcement 2 | . . . . . 1 . 1 . . Assault 1 | . . 1 . . . . . . . Garrison . | . . . . . . . . . . Intercept . | . . . . . . . . . . Searches Triggered . | . . . . . . . . . . Construction Impeded . | . . . . . . . . . . Haulers Reinforced . | . . . . . . . . . . Active Scanning Responses . | . . . . . . . . . . Cargo Convoy Interrupts . | . . . . . . . . . . Stealth | -11 -10 -10 -10 -9 -8 -7 -7 -6 -6 --------- Run | Jun Mat Min Exi Min Mat Fac DSF Fac Gar Distress Signals 2 | . 2 . . . . . . . . Communications Jammed . | . . . . . . . . . . Distress Signals . | . . . . . . . . . . Times Spotted 64 | . 8 . . . 10 . 11 . 35 Peak Tracking Total 9 | . 4 . . . 5 . 4 . 9 Tactical Retreats 4 | . 1 . . . . . 1 . 2 Traps | -11 -10 -10 -10 -9 -8 -7 -7 -6 -6 ------- Run | Jun Mat Min Exi Min Mat Fac DSF Fac Gar Traps Triggered 10 | . 1 . . . 2 . 1 . 6 Indirectly . | . . . . . . . . . . Trap Hack Attempts . | . . . . . . . . . . Triggered . | . . . . . . . . . . Disarmed . | . . . . . . . . . . Reprogrammed . | . . . . . . . . . . Reused . | . . . . . . . . . . Traps Extracted . | . . . . . . . . . . Installed . | . . . . . . . . . . Triggered . | . . . . . . . . . . Machines | -11 -10 -10 -10 -9 -8 -7 -7 -6 -6 ---------- Run | Jun Mat Min Exi Min Mat Fac DSF Fac Gar Machines Disabled 10 | . . . . . 1 . 1 . 8 Max in Single Turn 2 | . . . . . 1 . 1 . 2 Garrison Relay 3 | . . . . . . . . . 3 Machines Repaired . | . . . . . . . . . . Machines Sabotaged . | . . . . . . . . . . Overloaded Fab Kills . | . . . . . . . . . . Hacking | -11 -10 -10 -10 -9 -8 -7 -7 -6 -6 --------- Run | Jun Mat Min Exi Min Mat Fac DSF Fac Gar Machines Accessed 10 | . 2 . 2 . 2 1 . 2 1 Terminals 6 | . 2 . . . 2 1 . . 1 Fabricators . | . . . . . . . . . . Repair Stations . | . . . . . . . . . . Recycling Units . | . . . . . . . . . . Scanalyzers 1 | . . . . . . . . 1 . Garrison Access 1 | . . . . . . . . 1 . Total Hacks 24 | . 6 . 5 . 5 2 . 4 2 Successful 12 | . 4 . 5 . 1 1 . 1 . Failed 11 | . 1 . . . 4 1 . 3 2 Catastrophic 3 | . . . . . 1 . . 1 1 Database Lockouts 1 | . 1 . . . . . . . . Manual 13 | . 6 . 1 . 6 . . . . Terminals 15 | . 6 . . . 5 2 . . 2 Fabricators . | . . . . . . . . . . Repair Stations . | . . . . . . . . . . Recycling Units . | . . . . . . . . . . Scanalyzers 3 | . . . . . . . . 3 . Garrison Access 1 | . . . . . . . . 1 . Terminal Hacks 7 | . 1 . 5 . . 1 . . . Record 4 | . . . 4 . . . . . . Robot Analysis 1 | . 1 . . . . . . . . Open DSF 1 | . . . . . . 1 . . . EX-Prototype ID Bank 1 | . . . 1 . . . . . . Fabricator Hacks . | . . . . . . . . . . Repair Station Hacks . | . . . . . . . . . . Recycling Unit Hacks . | . . . . . . . . . . Scanalyzer . | . . . . . . . . . . Garrison Access Hacks 1 | . . . . . . . . 1 . Unlock Access 1 | . . . . . . . . 1 . Unauthorized Hacks 4 | . 3 . . . 1 . . . . Terminals 4 | . 3 . . . 1 . . . . Assimilate 1 | . 1 . . . . . . . . Botnet 3 | . 2 . . . 1 . . . . Fabricators . | . . . . . . . . . . Repair Stations . | . . . . . . . . . . Recycling Units . | . . . . . . . . . . Scanalyzers . | . . . . . . . . . . Garrison Access . | . . . . . . . . . . Data Cores Recovered . | . . . . . . . . . . Used . | . . . . . . . . . . Hacking Detections 7 | . 2 . . . 2 1 . 1 1 Full Trace Events 1 | . . . . . . . . . 1 Feedback Events 1 | . . . . . . . . . 1 Corruption 1 | . . . . . . . . . 1 Feedback Blocked . | . . . . . . . . . . Robot Schematics Acquired . | . . . . . . . . . . Robots Built . | . . . . . . . . . . Authchips . | . . . . . . . . . . Time . | . . . . . . . . . . Total Robot Build Rating . | . . . . . . . . . . Part Schematics Acquired . | . . . . . . . . . . Parts Built . | . . . . . . . . . . Authchips . | . . . . . . . . . . Time . | . . . . . . . . . . Total Part Build Rating . | . . . . . . . . . . Parts Repaired . | . . . . . . . . . . Time . | . . . . . . . . . . Parts Recycled . | . . . . . . . . . . Recycled Matter . | . . . . . . . . . . Retrieved Matter . | . . . . . . . . . . Retrieved Components . | . . . . . . . . . . Parts Scanalyzed . | . . . . . . . . . . Part Schematics Acquired . | . . . . . . . . . . Parts Damaged . | . . . . . . . . . . Bothacking | -11 -10 -10 -10 -9 -8 -7 -7 -6 -6 ------------ Run | Jun Mat Min Exi Min Mat Fac DSF Fac Gar Used RIF Installer . | . . . . . . . . . . Robots Hacked . | . . . . . . . . . . Non-combat . | . . . . . . . . . . Combat . | . . . . . . . . . . Robot Hacks Applied . | . . . . . . . . . . Relay Couplers Released 14 | . . . . . . . . . 14 Machine Destruction 10 | . . . . . . . . . 10 Programmers 4 | . . . . . . . . . 4 Fabnet Peak Effective % . | . . . . . . . . . . Robots Rewired . | . . . . . . . . . . Allies Hacked . | . . . . . . . . . . Hacks Repelled . | . . . . . . . . . . Allies | -11 -10 -10 -10 -9 -8 -7 -7 -6 -6 -------- Run | Jun Mat Min Exi Min Mat Fac DSF Fac Gar Total Allies 1 | . . 1 . . . . . . . Largest Group 1 | . . 1 . . . . . . . Highest-Rated Group 31 | . . 31 . . . . . . . Highest-Rated Ally 31 | . . 31 . . . . . . . Total Orders . | . . . . . . . . . . Ally Attacks 3 | . . 3 . . . . . . . Total Damage 63 | . . 63 . . . . . . . Kills . | . . . . . . . . . . Allies Corrupted . | . . . . . . . . . . Allies Melted 1 | . . 1 . . . . . . . Intel | -11 -10 -10 -10 -9 -8 -7 -7 -6 -6 ------- Run | Jun Mat Min Exi Min Mat Fac DSF Fac Gar Robot Analysis Total 1 | . 1 . . . . . . . . Derelict Logs Recovered . | . . . . . . . . . . Drone Launches . | . . . . . . . . . . Drone Recoveries . | . . . . . . . . . . Exploration | -11 -10 -10 -10 -9 -8 -7 -7 -6 -6 ------------- Run | Jun Mat Min Exi Min Mat Fac DSF Fac Gar Turns Passed 3592 | 114 481 78 350 24 472 48 429 278 1318 Spaces Moved 2105 | 71 238 65 291 20 316 13 183 145 763 Core 7 | 6 . . . . . . . . 1 Treads 567 | . . . . . . . 178 145 244 Legs 832 | 65 238 65 291 20 57 . . . 96 Wheels 309 | . . . . . 259 13 5 . 32 Hover . | . . . . . . . . . . Flight 390 | . . . . . . . . . 390 Fastest Speed 26 | 50 120 120 120 120 95 110 110 170 26 Average Speed 124 | 116 120 120 120 120 108 110 168 170 116 Slowest Speed 350 | 150 120 120 120 120 190 110 250 170 350 Overloaded Moves . | . . . . . . . . . . Propulsion Burnouts . | . . . . . . . . . . Robots Hopped . | . . . . . . . . . . Cave-ins Triggered . | . . . . . . . . . . Exploration Rate (%) 35 | 4 37 15 70 10 24 . 89 5 64 Regions Visited 9 Branch Regions 3 Pre-discovered Areas 2 | . . . 1 1 . . . . . Known Exits Taken 2 | . . . . . . 1 . 1 . Unknown Exits Taken 6 | 1 1 1 1 1 1 . . . . Scrap Searched . | . . . . . . . . . . Spaces Dug 9 | . . . . . . . . . 9 Terrain Destroyed 104 | . . . . . 7 . 2 . 95 Melee 9 | . . . . . . . . . 9 Projectile 5 | . . . . . 4 . . . 1 AOE 90 | . . . . . 3 . 2 . 85 Terrain Rammed . | . . . . . . . . . . Walls Destroyed . | . . . . . . . . . . Machines Disabled . | . . . . . . . . . . Actions | -11 -10 -10 -10 -9 -8 -7 -7 -6 -6 --------- Run | Jun Mat Min Exi Min Mat Fac DSF Fac Gar Total 2736 | 97 396 65 292 20 390 47 239 176 1014 Wait 248 | 12 127 . . 1 21 31 2 24 30 Move 2097 | 70 237 64 290 19 315 13 182 144 763 Hop . | . . . . . . . . . . Pick Up 43 | 7 5 1 1 . 8 . 7 2 12 Fast Attach 53 | 6 3 . . . 5 . 7 1 31 Attach 34 | 1 . . . . 3 2 1 1 26 Detach 10 | . . . . . . 1 . . 9 Swap 11 | . 3 . . . 1 . 3 2 2 Drop 28 | . 3 . 1 . 8 . 3 2 11 Fire 142 | 1 18 . . . 29 . 34 . 60 Melee 45 | . . . . . . . . . 45 Ram . | . . . . . . . . . . Kick . | . . . . . . . . . . Crush . | . . . . . . . . . . Escape Stasis 25 | . . . . . . . . . 25 Rewire . | . . . . . . . . . . Trap . | . . . . . . . . . . Miscellaneous . | . . . . . . . . . . Route ------- -11/Junkyard -10/Materials -10/Mines -10/Exiles -9/Mines -8/Materials -7/Factory -7/DSF -6/Factory -6/Garrison (discovered 3 exits: [*Fac x3]) History --------- Turn | Location | Event 55 | -11/Junkyard | Discovered new exit (range 15) 115 | -11/Junkyard | Entered Materials 310 | -10/Materials | Build established: Mutant 371 | -10/Materials | Central database locked down 503 | -10/Materials | Discovered new exit (range 16) 596 | -10/Materials | Entered Mines 603 | -10/Mines | Met a Derelict testing a Signal Generator 612 | -10/Mines | Found Signal Generator 668 | -10/Mines | Deemed a non-threat by the Exiles lab entrance 669 | -10/Mines | Discovered new exit (range 5) 674 | -10/Mines | Entered Exiles 703 | -10/Exiles | Met 8R-AWN 724 | -10/Exiles | Met EX-HEX 764 | -10/Exiles | Met EX-BIN 778 | -10/Exiles | Aligned with FarCom system 779 | -10/Exiles | Given EX-Vault access code 820 | -10/Exiles | Opened EX-Vault 829 | -10/Exiles | Found Skeleton Box 855 | -10/Exiles | Warned to stay clear of 0b10 Research branches 887 | -10/Exiles | Met EX-DEC 896 | -10/Exiles | Learned location of Zion (-7) 1011 | -10/Exiles | Discovered new exit (range 14) 1024 | -10/Exiles | Left Exiles lab with Skeleton Box 1024 | -10/Exiles | Entered Mines 1025 | -9/Mines | Learned location of Storage (-7) 1037 | -9/Mines | Discovered new exit (range 10) 1048 | -9/Mines | Entered Materials 1048 | -8/Materials | Evolved 4 slots: Propulsion x2, Utility x2 1339 | -8/Materials | Build established: Skirmisher 1479 | -8/Materials | Lost 4 parts (3n1w) 1492 | -8/Materials | Discovered new exit (range 7) 1520 | -8/Materials | Entered Factory 1520 | -7/Factory | Evolved 2 slots: Utility x2 1568 | -7/Factory | Identified exit to DSF 1568 | -7/Factory | Entered DSF 1643 | -7/DSF | Additional patrols routed to DSF 1754 | -7/DSF | Discovered new exit (range 16) 1855 | -7/DSF | Sterilization system engaged 1875 | -7/DSF | Ambient heat levels rising (+10) 1890 | -7/DSF | Ambient heat levels rising (+10) 1905 | -7/DSF | Ambient heat levels rising (+10) 1920 | -7/DSF | Ambient heat levels rising (+10) 1935 | -7/DSF | Ambient heat levels rising (+10) 1950 | -7/DSF | Ambient heat levels rising (+10) 1965 | -7/DSF | Ambient heat levels rising (+10) 1980 | -7/DSF | Ambient heat levels rising (+10) 1995 | -7/DSF | Ambient heat levels rising (+10) 1997 | -7/DSF | Entered Factory 1997 | -6/Factory | Evolved 2 slots: Weapon x2 2270 | -6/Factory | Identified exit to Garrison 2275 | -6/Factory | Entered Garrison 2300 | -6/Garrison | Build established: Mutant 2329 | -6/Garrison | Triggered checkpoint 2363 | -6/Garrison | Triggered checkpoint 2427 | -6/Garrison | Lost 7 parts (3n1u3w) 2647 | -6/Garrison | Discovered new exit (range 10) 2724 | -6/Garrison | Garrison Relay disabled 2738 | -6/Garrison | Triggered checkpoint 2787 | -6/Garrison | Lost 4 parts (1p1u2w) 2926 | -6/Garrison | Triggered checkpoint 3064 | -6/Garrison | Triggered checkpoint 3086 | -6/Garrison | Triggered checkpoint 3222 | -6/Garrison | Triggered checkpoint 3243 | -6/Garrison | Core integrity fell below 50% 3295 | -6/Garrison | Lost 8 parts (1p3n2u2w) 3314 | -6/Garrison | Garrison Relay disabled 3326 | -6/Garrison | Garrison Relay disabled 3417 | -6/Garrison | Discovered new exit (range 11) 3427 | -6/Garrison | Rescued a captive Derelict 3430 | -6/Garrison | Rescued a captive Derelict 3445 | -6/Garrison | Spotted B-75 Beast 3469 | -6/Garrison | Triggered checkpoint 3479 | -6/Garrison | Lost 4 parts (1p1n1u1w) 3556 | -6/Garrison | Core integrity fell below 20% 3579 | -6/Garrison | Discovered new exit (range 10) 3588 | -6/Garrison | Triggered checkpoint 3593 | -6/Garrison | Destroyed by Y-54 Guardian with Gatling Laser Last Messages --------------- 03469_ Garrison Door breached. 03469_ Beams of light sweep through the air. An alarm sounds. 03475_ ALERT: Garrison interior compromised. 03478_ Acquired 10 matter. 03478_ Acquired 20 matter. 03484_ Acquired Variable Charge Gun. 03498_ System corrupted: Matter fused (-8). 03515_ Q:TCWV|QQ,/SKY I1VMJ>V0O&Y8WQB 03540_ The unstable cave ceiling collapses. 03556_ Acquired 4 matter. 03558_ Acquired 58 matter. 03565_ Acquired VTOL Module. 03568_ Acquired 17 matter. 03579_ EXIT=FOUND 03588_ Beams of light sweep through the air. An alarm sounds. 03589_ Propulsion Shielding destroyed. 03589_ Cesium-ion Thruster destroyed. 03589_ VTOL Module destroyed. 03593_ Scythe destroyed. 03593_ Cesium-ion Thruster destroyed. Map ----- +----------------------------------------------------+ | #???????????????????????????????? | | #???????????????????????????????? | | ### #???????????????????????????????? | | ??# #???????????????????????????????? | | ??# #???????????????????????????????? | | ??# #???????????????????????????????? | | ??# #???????????????????????????????? | | ??# #???????????????????????????????? | | ??# #???????????????????????????????? | | ??# #???????????????????????????????? | | ??# #???????????????????????????????? | | ??# #???????????????????????????????? | | ??# #???????????????????????????????? | | ??# #???????????????????????????????? | | ??# #???????????????????????????????? | | ??# #???????????????????????????????? | | ??# #???????????????????????????????? | | ??# #???????????????????????????????? | | ??# #???????#####???????????????????? | | ??# #???????# #???????????????????? | | ??# ######### < ###########?????????? | | ??# #?????????? | | ??# #?????????? | | ??####################### #?????????? | | ????????????????????????# #?????????? | | ????????????????????????#@ #?????????? | | ??????????????????????? Y #?????????? | | ??????????????????????# #?????????? | | ??????????????????????# Y #?????????? | | ??????????????????????### #?????????? | | ????????????????????????# #?????????? | | ????????????????????????# ?????????? | | ????????????????????????# ?????????? | | ????????????????????????# ?????????? | | ????????????????????????? #"????????? | | ?????????????????????????####????????? | | ?????????????????????????????????????? | | ?????????????????????????????????????? | | ?????????????????????????????????????? | | ?????????????????????????????????????? | | ?????????????????????????????????????? | | ?????????????????????????????????????? | | ?????????????????????????????????????? | | ?????????????????????????????????????? | | ?????????????????????????????????????? | | ?????????????????????????????????????? | | | | | | | | | +----------------------------------------------------+ Best States ------------- Heat Dissipation 64 Energy Generation 18 Energy Capacity 290 Matter Stores 300 Matter Capacity 300 Sight Range 16 Terrain Scan Range 16 Terrain Scan Density 210 Armor Coverage 150 Propulsion Shielding 33 Phase Shifting 5 Evasion (%) 64 Targeting Accuracy 8 Recoil Reduction 4 Offensive Hacking 20 Item Schematics ----------------- None Robot Schematics ------------------ None Fabricated ------------ Nothing Alien Tech Used ----------------- None Achievements -------------- None Challenges ------------ None Game ------ Seed ParticleHoverBoregun Manual? 0 Play Time 00:51:01 Cumulative 31.8 hours Start 2024.02.14 @ 11:17:22 End 2024.02.19 @ 05:10:40 Sessions 3 Manual Loads 0 Difficulty Rogue Special Mode None Game No. 39 Rogue 39 Adventurer 0 Explorer 0 Win Type - Total 0 Types 0/0/0/0/0/0/0/0/0 Lore% 19 Gallery% 34 Achievement% 28 Wizard Run 0 Options --------- ASCII 1 Keyboard 0 Movement Numpad Keybinds 0 Fullscreen 2 Font 18/SmallcapsGlow Map View 76x50 Tactical HUD 1 Map Filters NONE Filters NONE Steam 1 RUN: c18fb130-eee4-44e8-97bd-574d331696da